[Event "-chT Youth Countries 2019"]
[Site "Wuerzburg"]
[Date "2019.10.02"]
[Round "2.7"]
[White "Mundt, Alexandra"]
[Black "Yue, Qizhou"]
[Result "1/2-1/2"]
[ECO "B47"]
[WhiteElo "1760"]
[BlackElo "1810"]
[Annotator "NA"]
[PlyCount "79"]
[EventDate "2019.10.02"]
[EventType "team-tourn"]
[EventRounds "7"]
[EventCountry "GER"]
[SourceTitle "playchess.com"]
[Source "ChessBase"]
[SourceQuality "1"]
[WhiteTeam "Schleswig-Holstein"]
[BlackTeam "Rheinland-Pfalz"]
[TimeControl "40/5400+30:1800+30"]

1. e4 {[%emt 0:00:00]} c5 {[%emt 0:00:00]} 2. Nf3 {[%emt 0:00:00]} e6 {[%emt 0:00:00]} 3. d4 {[%emt 0:00:00]} cxd4 {[%emt 0:00:00]} 4. Nxd4 {[%emt 0:00:00]} Nc6 {[%emt 0:00:04]} 5. Nc3 {[%emt 0:00:52]} Qc7 {[%emt 0:00:23]} 6. Be2 {[%emt 0:01:46]} a6 {[%emt 0:00:17]} 7. a4 {[%emt 0:00:30]} Nf6 {[%emt 0:00:23]} 8. O-O {[%emt 0:02:35]} Bb4 {[%emt 0:00:21]} 9. f3 {[%emt 0:02:14]} d5 {[%emt 0:00:53]} 10. Nxc6 {[%emt 0:09:00]} bxc6 {[%emt 0:00:08]} 11. Qd3 {[%emt 0:04:14]} O-O {[%emt 0:01:08]} 12. Bg5 {[%emt 0:04:46]} Nd7 {[%emt 0:02:25]} 13. Kh1 {[%emt 0:02:21]} Bb7 {[%emt 0:07:51]} 14. Qe3 {[%emt 0:07:29]} e5 {[%emt 0:03:50]} 15. Qf2 {[%emt 0:05:13]} f6 {[%emt 0:16:06]} 16. Bc1 {[%emt 0:02:13]} a5 {[%emt 0:09:24]} 17. Qg3 {[%emt 0:05:37]} Nc5 {[%emt 0:03:03]} 18. Bd3 {[%emt 0:02:09]} Ba6 {[%emt 0:10:00]} 19. Rd1 {[%emt 0:01:10]} Bxc3 {[%emt 0:03:03]} 20. bxc3 {[%emt 0:00:07]} dxe4 {[%emt 0:00:14]} 21. fxe4 {[%emt 0:01:46]} Rfd8 {[%emt 0:01:21]} 22. Qe3 {[%emt 0:05:04]} Ne6 {[%emt 0:03:43]} 23. Ba3 {[%emt 0:04:53]} Bxd3 {[%emt 0:04:06]} 24. cxd3 {[%emt 0:00:21]} c5 {[%emt 0:04:30]} 25. Bb2 {[%emt 0:09:37]} Rab8 {[%emt 0:01:29]} 26. Rd2 {[%emt 0:09:24]} Rd6 {[%emt 0:04:31]} 27. d4 {[%emt 0:06:55]} cxd4 {[%emt 0:00:36]} 28. cxd4 {[%emt 0:00:08]} exd4 {[%emt 0:00:37]} 29. Bxd4 {[%emt 0:00:02]} Rbd8 {[%emt 0:01:04]} 30. Bc3 {[%emt 0:01:11]} Nc5 {[%emt 0:05:47]} 31. Rxd6 {[%emt 0:03:11]} Rxd6 {[%emt 0:00:35]} 32. Bd4 {[%emt 0:02:55]} Rc6 {[%emt 0:02:06]} 33. Rc1 {[%emt 0:02:11]} Ne6 {[%emt 0:00:42]} 34. Rd1 {[%emt 0:04:29]} Nxd4 {[%emt 0:00:42]} 35. Qxd4 {[%emt 0:00:01]} Rc4 {[%emt 0:00:50]} 36. Qd5+ {[%emt 0:00:00]} Kf8 {[%emt 0:00:26]} 37. h3 {[%emt 0:01:19]} Rxa4 {[%emt 0:04:42]} 38. Qa8+ {[%emt 0:00:34]} Kf7 {[%emt 0:04:47]} 39. Qd5+ {[%emt 0:00:02]} Kf8 {[%emt 0:01:20]} 40. Qa8+ {normal} 1/2-1/2

[Event "-chT Youth Countries 2019"]
[Site "Wuerzburg"]
[Date "2019.10.02"]
[Round "2.7"]
[White "Sperling, Niclas"]
[Black "Henninger, Claire"]
[Result "1/2-1/2"]
[ECO "B19"]
[WhiteElo "1656"]
[BlackElo "1471"]
[Annotator "NA"]
[PlyCount "109"]
[EventDate "2019.10.02"]
[EventType "team-tourn"]
[EventRounds "7"]
[EventCountry "GER"]
[SourceTitle "playchess.com"]
[Source "ChessBase"]
[SourceQuality "1"]
[WhiteTeam "SG Brandenburg / Berlin"]
[BlackTeam "Baden 2"]
[TimeControl "40/5400+30:1800+30"]

1. e4 {[%emt 0:00:00]} c6 {[%emt 0:00:00]} 2. d4 {[%emt 0:00:00]} d5 {[%emt 0:00:05]} 3. Nc3 {[%emt 0:00:00]} dxe4 {[%emt 0:00:40]} 4. Nxe4 {[%emt 0:00:04]} Bf5 {[%emt 0:00:25]} 5. Ng3 {[%emt 0:00:09]} Bg6 {[%emt 0:00:21]} 6. h4 {[%emt 0:00:19]} h6 {[%emt 0:02:03]} 7. Nf3 {[%emt 0:00:57]} Nd7 {[%emt 0:02:38]} 8. Bc4 {[%emt 0:01:24]} e6 {[%emt 0:02:06]} 9. Bf4 {[%emt 0:07:35]} Ngf6 {[%emt 0:07:30]} 10. Qd2 {[%emt 0:03:10]} Nd5 {[%emt 0:08:56]} 11. c3 {[%emt 0:07:45]} Nxf4 {[%emt 0:02:26]} 12. Qxf4 {[%emt 0:00:16]} Qf6 {[%emt 0:05:59]} 13. Qe3 {[%emt 0:03:09]} Bd6 {[%emt 0:03:21]} 14. Ne4 {[%emt 0:01:43]} Bxe4 {[%emt 0:05:25]} 15. Qxe4 {[%emt 0:00:13]} Qf4 {[%emt 0:01:10]} 16. Qxf4 {[%emt 0:02:33]} Bxf4 {[%emt 0:00:18]} 17. g3 {[%emt 0:00:01]} Bd6 {[%emt 0:00:19]} 18. O-O-O {[%emt 0:00:07]} O-O-O {[%emt 0:00:43]} 19. Rhe1 {[%emt 0:00:29]} Rhe8 {[%emt 0:05:29]} 20. Bb3 {[%emt 0:00:43]} Re7 {[%emt 0:01:29]} 21. Nd2 {[%emt 0:02:59]} Nb6 {[%emt 0:02:20]} 22. Ne4 {[%emt 0:01:30]} a5 {[%emt 0:03:00]} 23. Nxd6+ {[%emt 0:00:49]} Rxd6 {[%emt 0:00:20]} 24. a4 {[%emt 0:00:17]} Red7 {[%emt 0:01:24]} 25. Re2 {[%emt 0:01:28]} Rd8 {[%emt 0:07:38]} 26. Red2 {[%emt 0:01:31]} f6 {[%emt 0:01:41]} 27. Re2 {[%emt 0:02:03]} Nd5 {[%emt 0:04:00]} 28. Rde1 {[%emt 0:00:27]} Re8 {[%emt 0:02:19]} 29. f4 {[%emt 0:00:28]} g6 {[%emt 0:10:55]} 30. h5 {[%emt 0:02:01]} g5 {[%emt 0:01:53]} 31. f5 {[%emt 0:00:14]} Kd7 {[%emt 0:01:28]} 32. Kd2 {[%emt 0:02:13]} e5 {[%emt 0:06:04]} 33. Kc2 {[%emt 0:02:10]} b6 {[%emt 0:09:58]} 34. dxe5 {[%emt 0:01:16]} fxe5 {[%emt 0:00:30]} 35. Rxe5 {[%emt 0:00:04]} Nf6 {[%emt 0:00:36]} 36. Rxe8 {[%emt 0:04:16]} Nxe8 {[%emt 0:00:05]} 37. Bc4 {[%emt 0:06:00]} Nf6 {[%emt 0:00:48]} 38. Re6 {[%emt 0:04:49]} Rxe6 {[%emt 0:00:39]} 39. Bxe6+ {[%emt 0:00:03]} Ke7 {[%emt 0:00:13]} 40. Kd3 {[%emt 0:00:16]} Nxh5 {[%emt 0:00:51]} 41. Ke4 {[%emt 0:34:44]} Nxg3+ 42. Ke5 Nh5 {[%emt 0:17:23]} 43. b4 {[%emt 0:00:00]} g4 {[%emt 0:01:33]} 44. Bc4 {[%emt 0:00:00]} Nf6 {[%emt 0:02:59]} 45. b5 {[%emt 0:00:00]} c5 {[%emt 0:02:54]} 46. Be2 {[%emt 0:00:00]} h5 {[%emt 0:00:34]} 47. c4 {[%emt 0:00:00]} g3 {[%emt 0:05:26]} 48. Bf3 {[%emt 0:00:00]} h4 {[%emt 0:01:45]} 49. Kf4 {[%emt 0:00:00]} Kd6 {[%emt 0:00:46]} 50. Bg2 {[%emt 0:00:00]} Nh7 {[%emt 0:01:22]} 51. Bh3 {[%emt 0:00:00]} Nf6 {[%emt 0:00:33]} 52. Bg2 {[%emt 0:00:00]} Nh7 {[%emt 0:00:23]} 53. Bh3 {[%emt 0:00:00]} Nf6 {[%emt 0:00:11]} 54. Bg2 {[%emt 0:00:00]} Nh7 {[%emt 0:01:31]} 55. Bh3 {[%emt 0:00:00] normal} 1/2-1/2

[Event "-chT Youth Countries 2019"]
[Site "Wuerzburg"]
[Date "2019.10.02"]
[Round "2.7"]
[White "Fischer, Darja"]
[Black "Bungarten, Jona"]
[Result "0-1"]
[ECO "D32"]
[WhiteElo "1604"]
[BlackElo "1669"]
[Annotator "NA"]
[PlyCount "54"]
[EventDate "2019.10.02"]
[EventType "team-tourn"]
[EventRounds "7"]
[EventCountry "GER"]
[SourceTitle "playchess.com"]
[Source "ChessBase"]
[SourceQuality "1"]
[WhiteTeam "Baden 1"]
[BlackTeam "Nordrhein-Westfalen"]
[TimeControl "40/5400+30:1800+30"]

1. d4 {[%emt 0:00:00]} d5 {[%emt 0:00:00]} 2. c4 {[%emt 0:00:45]} e6 {[%emt 0:00:00]} 3. Nc3 {[%emt 0:00:19]} c5 {[%emt 0:00:16]} 4. cxd5 {[%emt 0:00:59]} cxd4 {[%emt 0:00:08]} 5. Qxd4 {[%emt 0:00:37]} Nc6 {[%emt 0:00:07]} 6. Qd1 {[%emt 0:01:53]} exd5 {[%emt 0:00:43]} 7. Nf3 {[%emt 0:02:02]} Nf6 {[%emt 0:02:38]} 8. Bg5 {[%emt 0:02:23]} d4 {[%emt 0:04:36]} 9. Nb1 {[%emt 0:05:54]} Bb4+ {[%emt 0:02:15]} 10. Nbd2 {[%emt 0:01:31]} h6 {[%emt 0:00:38]} 11. Bxf6 {[%emt 0:03:20]} Qxf6 {[%emt 0:00:14]} 12. g3 {[%emt 0:02:23]} O-O {[%emt 0:01:04]} 13. Bg2 {[%emt 0:00:41]} d3 {[%emt 0:01:20]} 14. exd3 {[%emt 0:16:46]} Re8+ {[%emt 0:00:10]} 15. Kf1 {[%emt 0:00:31]} Bg4 {[%emt 0:00:14]} 16. h3 {[%emt 0:02:19]} Bh5 {[%emt 0:00:39]} 17. g4 {[%emt 0:04:14]} Bg6 {[%emt 0:00:17]} 18. Qb3 {[%emt 0:05:02]} Rad8 {[%emt 0:00:51]} 19. Ne4 {[%emt 0:04:54]} Bxe4 {[%emt 0:00:59]} 20. dxe4 {[%emt 0:00:11]} Rxe4 {[%emt 0:00:18]} 21. Kg1 {[%emt 0:02:36]} Re2 {[%emt 0:00:33]} 22. Qc4 {[%emt 0:08:13]} Qxb2 {[%emt 0:01:08]} 23. Rf1 {[%emt 0:03:33]} Rc2 {[%emt 0:03:14]} 24. Qe4 {[%emt 0:01:58]} Bc5 {[%emt 0:00:21]} 25. g5 {[%emt 0:02:16]} Rxf2 {[%emt 0:00:37]} 26. Rh2 {[%emt 0:03:50]} Rxf1+ {[%emt 0:00:12]} 27. Kxf1 {[%emt 0:00:17]} Qf2# {[%emt 0:00:07] normal} 0-1

[Event "-chT Youth Countries 2019"]
[Site "Wuerzburg"]
[Date "2019.10.02"]
[Round "2.7"]
[White "Huppert, Anna"]
[Black "Fuchs, Florian"]
[Result "0-1"]
[ECO "B21"]
[WhiteElo "1516"]
[BlackElo "2256"]
[Annotator "NA"]
[PlyCount "79"]
[EventDate "2019.10.02"]
[EventType "team-tourn"]
[EventRounds "7"]
[EventCountry "GER"]
[SourceTitle "playchess.com"]
[Source "ChessBase"]
[SourceQuality "1"]
[WhiteTeam "Saarland"]
[BlackTeam "Bayern 2"]
[TimeControl "40/5400+30:1800+30"]

1. e4 {[%emt 0:00:00]} c5 {[%emt 0:00:00]} 2. d4 {[%emt 0:00:00]} cxd4 {[%emt 0:00:00]} 3. c3 {[%emt 0:00:00]} g6 {[%emt 0:00:00]} 4. Bc4 {[%emt 0:00:00]} e6 {[%emt 0:00:26]} 5. Nf3 {[%emt 0:02:45]} Bg7 {[%emt 0:00:38]} 6. cxd4 {[%emt 0:01:41]} d5 {[%emt 0:00:33]} 7. exd5 {[%emt 0:01:47]} exd5 {[%emt 0:00:13]} 8. Bb3 {[%emt 0:00:34]} Ne7 {[%emt 0:01:30]} 9. Nc3 {[%emt 0:00:25]} O-O {[%emt 0:02:21]} 10. O-O {[%emt 0:00:40]} Nbc6 {[%emt 0:00:09]} 11. Bg5 {[%emt 0:14:39]} Be6 {[%emt 0:03:20]} 12. Qd2 {[%emt 0:04:11]} f6 {[%emt 0:02:56]} 13. Bh6 {[%emt 0:05:56]} Na5 {[%emt 0:01:08]} 14. Bc2 {[%emt 0:01:55]} Nc4 {[%emt 0:00:43]} 15. Qc1 {[%emt 0:01:12]} Nf5 {[%emt 0:02:06]} 16. Bxg7 {[%emt 0:01:04]} Kxg7 {[%emt 0:00:11]} 17. Re1 {[%emt 0:02:32]} Qd6 {[%emt 0:01:50]} 18. b3 {[%emt 0:12:57]} Na5 {[%emt 0:01:39]} 19. Qd2 {[%emt 0:00:51]} Nc6 {[%emt 0:08:56]} 20. Rac1 {[%emt 0:04:09]} Rac8 {[%emt 0:00:22]} 21. Nb5 {[%emt 0:11:56]} Qd7 {[%emt 0:00:21]} 22. a3 {[%emt 0:00:34]} a6 {[%emt 0:02:26]} 23. Nc3 {[%emt 0:00:14]} Rfe8 {[%emt 0:02:27]} 24. b4 {[%emt 0:02:31]} b5 {[%emt 0:03:04]} 25. Bb3 {[%emt 0:01:07]} Bf7 {[%emt 0:02:25]} 26. Red1 {[%emt 0:06:57]} g5 {[%emt 0:04:18]} 27. h3 {[%emt 0:03:05]} h5 {[%emt 0:00:39]} 28. Ne2 {[%emt 0:02:53]} Nd6 {[%emt 0:00:55]} 29. Qa2 {[%emt 0:03:15]} Ne7 {[%emt 0:03:07]} 30. Nc3 {[%emt 0:03:07]} Nc4 {[%emt 0:00:12]} 31. Ne1 {[%emt 0:04:09]} Qd6 {[%emt 0:03:52]} 32. Nd3 {[%emt 0:01:30]} Rh8 {[%emt 0:01:34]} 33. Ne2 {[%emt 0:02:55]} Nf5 {[%emt 0:00:45]} 34. g3 {[%emt 0:04:17]} Rce8 {[%emt 0:02:43]} 35. Kg2 {[%emt 0:01:02]} Qe6 {[%emt 0:02:13]} 36. Rc2 {[%emt 0:00:37]} Nfe3+ {[%emt 0:00:59]} 37. fxe3 {[%emt 0:00:12]} Nxe3+ {[%emt 0:00:05]} 38. Kf2 {[%emt 0:00:48]} Nxd1+ {[%emt 0:00:13]} 39. Ke1 {[%emt 0:00:25]} Ne3 {[%emt 0:00:11]} 40. Rc5 {[%emt 0:00:00] normal} 0-1

[Event "-chT Youth Countries 2019"]
[Site "Wuerzburg"]
[Date "2019.10.02"]
[Round "2.7"]
[White "Voigt, Anastasia"]
[Black "Buchholz, Maja"]
[Result "1-0"]
[ECO "C05"]
[WhiteElo "1457"]
[BlackElo "1671"]
[Annotator "NA"]
[PlyCount "35"]
[EventDate "2019.10.02"]
[EventType "team-tourn"]
[EventRounds "7"]
[EventCountry "GER"]
[SourceTitle "playchess.com"]
[Source "ChessBase"]
[SourceQuality "1"]
[WhiteTeam "Sachsen-Anhalt"]
[BlackTeam "Hessen"]
[WhiteTeamCountry "GER"]
[BlackTeamCountry "GER"]
[TimeControl "40/5400+30:1800+30"]

1. e4 {[%emt 0:00:00]} e6 {[%emt 0:00:00]} 2. d4 {[%emt 0:00:00]} d5 {[%emt 0:00:00]} 3. Nd2 {[%emt 0:00:00]} Nf6 {[%emt 0:00:00]} 4. e5 {[%emt 0:00:00]} Nfd7 {[%emt 0:00:00]} 5. Bd3 {[%emt 0:00:08]} c5 {[%emt 0:00:08]} 6. c3 {[%emt 0:00:08]} Nc6 {[%emt 0:00:17]} 7. Ne2 {[%emt 0:00:16]} f6 {[%emt 0:00:32]} 8. exf6 {[%emt 0:01:48]} Nxf6 {[%emt 0:00:13]} 9. Nf3 {[%emt 0:00:52]} Bd6 {[%emt 0:00:30]} 10. Bf4 {[%emt 0:01:09]} Be7 {[%emt 0:00:19]} 11. O-O {[%emt 0:00:47]} O-O {[%emt 0:00:13]} 12. Qc2 {[%emt 0:03:20]} Bd7 {[%emt 0:01:42]} 13. Rfe1 {[%emt 0:03:28]} c4 {[%emt 0:02:36]} 14. Bxc4 {[%emt 0:03:32]} dxc4 {[%emt 0:00:19]} 15. Ng3 {[%emt 0:00:51]} Nd5 {[%emt 0:01:07]} 16. Bd2 {[%emt 0:01:07]} Bd6 {[%emt 0:00:43]} 17. Ng5 {[%emt 0:00:48]} h6 {[%emt 0:02:15]} 18. Qh7# {[%emt 0:00:09] normal} 1-0

[Event "-chT Youth Countries 2019"]
[Site "Wuerzburg"]
[Date "2019.10.02"]
[Round "2.8"]
[White "Pohle, Saskia"]
[Black "Lorenz, Veronika"]
[Result "1-0"]
[ECO "C55"]
[WhiteElo "1716"]
[BlackElo "1237"]
[Annotator "NA"]
[PlyCount "49"]
[EventDate "2019.10.02"]
[EventType "team-tourn"]
[EventRounds "7"]
[EventCountry "GER"]
[SourceTitle "playchess.com"]
[Source "ChessBase"]
[SourceQuality "1"]
[WhiteTeam "Sachsen"]
[BlackTeam "Berlin"]
[TimeControl "40/5400+30:1800+30"]

1. e4 {[%emt 0:00:00]} e5 {[%emt 0:00:00]} 2. Nf3 {[%emt 0:00:00]} Nc6 {[%emt 0:00:00]} 3. d4 {[%emt 0:00:00]} exd4 {[%emt 0:00:14]} 4. Bc4 {[%emt 0:00:00]} Nf6 {[%emt 0:00:35]} 5. e5 {[%emt 0:00:00]} d5 {[%emt 0:00:19]} 6. Bb5 {[%emt 0:00:08]} Ne4 {[%emt 0:00:15]} 7. Nxd4 {[%emt 0:00:22]} Bd7 {[%emt 0:00:14]} 8. Bxc6 {[%emt 0:00:17]} bxc6 {[%emt 0:00:12]} 9. O-O {[%emt 0:00:11]} Bc5 {[%emt 0:00:19]} 10. f3 {[%emt 0:00:14]} Ng5 {[%emt 0:00:20]} 11. f4 {[%emt 0:00:20]} Ne4 {[%emt 0:00:27]} 12. Be3 {[%emt 0:00:15]} Bb6 {[%emt 0:00:18]} 13. Nd2 {[%emt 0:00:33]} Nxd2 {[%emt 0:00:26]} 14. Qxd2 {[%emt 0:00:05]} O-O {[%emt 0:00:25]} 15. f5 {[%emt 0:08:11]} c5 {[%emt 0:03:36]} 16. Nb3 {[%emt 0:02:27]} d4 {[%emt 0:01:31]} 17. Bg5 {[%emt 0:00:42]} Qe8 {[%emt 0:01:14]} 18. Rae1 {[%emt 0:01:48]} Kh8 {[%emt 0:03:52]} 19. f6 {[%emt 0:07:32]} g6 {[%emt 0:03:32]} 20. Bh6 {[%emt 0:00:53]} Rg8 {[%emt 0:00:12]} 21. Rf4 {[%emt 0:03:48]} Qe6 {[%emt 0:05:36]} 22. Rh4 {[%emt 0:05:45]} Bc6 {[%emt 0:04:36]} 23. Bf8 {[%emt 0:13:06]} Qd5 {[%emt 0:06:32]} 24. Rxh7+ {[%emt 0:00:04]} Kxh7 {[%emt 0:00:38]} 25. Qh6# {normal} 1-0

[Event "-chT Youth Countries 2019"]
[Site "Wuerzburg"]
[Date "2019.10.02"]
[Round "2.8"]
[White "Sereda, Yaroslava"]
[Black "Visvikis, Kassandra"]
[Result "1/2-1/2"]
[ECO "C77"]
[WhiteElo "1687"]
[BlackElo "1531"]
[Annotator "NA"]
[PlyCount "152"]
[EventDate "2019.10.02"]
[EventType "team-tourn"]
[EventRounds "7"]
[EventCountry "GER"]
[SourceTitle "playchess.com"]
[Source "ChessBase"]
[SourceQuality "1"]
[WhiteTeam "Nordrhein-Westfalen"]
[BlackTeam "Baden 1"]
[TimeControl "40/5400+30:1800+30"]

1. e4 {[%emt 0:00:00]} e5 {[%emt 0:00:00]} 2. Nf3 {[%emt 0:00:00]} Nc6 {[%emt 0:00:00]} 3. Bb5 {[%emt 0:00:00]} a6 {[%emt 0:00:00]} 4. Ba4 {[%emt 0:00:00]} Nf6 {[%emt 0:00:00]} 5. d4 {[%emt 0:00:16]} exd4 {[%emt 0:00:32]} 6. O-O {[%emt 0:00:08]} Be7 {[%emt 0:01:22]} 7. Re1 {[%emt 0:00:13]} d6 {[%emt 0:00:25]} 8. Nxd4 {[%emt 0:01:55]} Bd7 {[%emt 0:00:09]} 9. Nxc6 {[%emt 0:24:35]} bxc6 {[%emt 0:00:30]} 10. c4 {[%emt 0:00:30]} O-O {[%emt 0:00:30]} 11. Nc3 {[%emt 0:00:30]} h6 {[%emt 0:00:30]} 12. h3 {[%emt 0:00:30]} Qc8 {[%emt 0:00:30]} 13. Bf4 {[%emt 0:13:20]} Nh7 {[%emt 0:16:19]} 14. e5 {[%emt 0:12:31]} dxe5 {[%emt 0:00:39]} 15. Bxe5 {[%emt 0:00:18]} Bf6 {[%emt 0:00:51]} 16. Bxf6 {[%emt 0:09:28]} Nxf6 {[%emt 0:00:09]} 17. Qf3 {[%emt 0:01:09]} Qb7 {[%emt 0:07:45]} 18. b3 {[%emt 0:09:47]} Qb6 {[%emt 0:08:20]} 19. Rad1 {[%emt 0:01:49]} Rfe8 {[%emt 0:06:54]} 20. Ne4 {[%emt 0:07:22]} Rxe4 {[%emt 0:04:14]} 21. Rxe4 {[%emt 0:00:17]} Nxe4 {[%emt 0:00:07]} 22. Rxd7 {[%emt 0:02:30]} Nf6 {[%emt 0:01:21]} 23. Rd1 {[%emt 0:01:28]} Rb8 {[%emt 0:08:55]} 24. Qxc6 {[%emt 0:01:55]} Qa5 {[%emt 0:03:01]} 25. g3 {[%emt 0:03:34]} Qh5 {[%emt 0:04:04]} 26. Rd4 {[%emt 0:02:57]} Qxh3 {[%emt 0:02:13]} 27. Qxc7 {[%emt 0:01:12]} Rc8 {[%emt 0:02:00]} 28. Qf4 {[%emt 0:00:27]} Qe6 {[%emt 0:00:58]} 29. Kg2 {[%emt 0:02:09]} Qe2 {[%emt 0:07:08]} 30. Rd2 {[%emt 0:01:22]} Qe6 {[%emt 0:00:15]} 31. Rd6 {[%emt 0:00:41]} Qe7 {[%emt 0:00:24]} 32. Rb6 {[%emt 0:01:53]} Rd8 {[%emt 0:01:27]} 33. Qf3 {[%emt 0:00:57]} a5 {[%emt 0:00:57]} 34. Rb5 {[%emt 0:00:40]} Ne4 {[%emt 0:00:56]} 35. Rd5 {[%emt 0:00:29]} Rxd5 {[%emt 0:02:19]} 36. cxd5 {[%emt 0:00:05]} Nd6 {[%emt 0:00:32]} 37. Bc6 {[%emt 0:00:42]} Qe5 {[%emt 0:00:55]} 38. Qd3 {[%emt 0:00:44]} h5 {[%emt 0:00:57]} 39. Qd2 {[%emt 0:00:24]} Qe4+ {[%emt 0:01:18]} 40. Kh2 {[%emt 0:00:21]} h4 {[%emt 0:00:15]} 41. Qg5 {[%emt 0:25:34]} hxg3+ {[%emt 0:00:22]} 42. Qxg3 {[%emt 0:01:11]} Nf5 {[%emt 0:00:54]} 43. f3 {[%emt 0:04:15]} Qe2+ {[%emt 0:02:49]} 44. Qg2 {[%emt 0:00:10]} Qe5+ {[%emt 0:00:30]} 45. Kh3 {[%emt 0:01:20]} Ne3 {[%emt 0:01:35]} 46. Qe2 {[%emt 0:00:36]} Qh5+ {[%emt 0:01:08]} 47. Kg3 {[%emt 0:00:24]} Nxd5 {[%emt 0:01:47]} 48. Qe8+ {[%emt 0:00:35]} Kh7 {[%emt 0:00:05]} 49. Qe4+ {[%emt 0:00:27]} g6 {[%emt 0:00:57]} 50. Qxd5 {[%emt 0:00:16]} f5 {[%emt 0:00:21]} 51. Qf7+ {[%emt 0:00:14]} Kh6 {[%emt 0:00:12]} 52. Qf8+ {[%emt 0:00:32]} Kh7 {[%emt 0:00:16]} 53. Qe7+ {[%emt 0:00:21]} Kh6 {[%emt 0:00:08]} 54. Qe3+ {[%emt 0:00:25]} Kh7 {[%emt 0:00:11]} 55. Bd5 {[%emt 0:00:22]} f4+ {[%emt 0:00:13]} 56. Qxf4 {[%emt 0:00:23]} Qxd5 {[%emt 0:00:09]} 57. Qc7+ {[%emt 0:00:23]} Kh6 {[%emt 0:00:15]} 58. Qc1+ {[%emt 0:01:08]} Kh7 {[%emt 0:00:06]} 59. Qc7+ {[%emt 0:00:51]} Kh6 {[%emt 0:00:06]} 60. Qf4+ {[%emt 0:00:21]} Kh7 {[%emt 0:00:09]} 61. Qh4+ {[%emt 0:00:34]} Kg7 {[%emt 0:00:14]} 62. Qe7+ {[%emt 0:00:47]} Kh6 {[%emt 0:00:06]} 63. Qe3+ {[%emt 0:00:21]} Kg7 {[%emt 0:00:17]} 64. f4 {[%emt 0:00:27]} Qd8 {[%emt 0:02:23]} 65. Qe5+ {[%emt 0:00:17]} Kh6 {[%emt 0:00:44]} 66. Qe3 {[%emt 0:00:55]} Kg7 {[%emt 0:00:10]} 67. Qc3+ {[%emt 0:00:24]} Kh6 {[%emt 0:00:27]} 68. Qf3 {[%emt 0:00:41]} Kg7 {[%emt 0:00:24]} 69. Qb7+ {[%emt 0:00:14]} Kh6 {[%emt 0:00:17]} 70. Qe4 {[%emt 0:00:47]} Kg7 {[%emt 0:00:13]} 71. Kg4 {[%emt 0:00:30]} Qd1+ {[%emt 0:00:13]} 72. Qf3 {[%emt 0:00:30]} Qg1+ {[%emt 0:00:05]} 73. Kh3 {[%emt 0:00:16]} Qc5 {[%emt 0:00:39]} 74. Qb7+ {[%emt 0:00:38]} Kh6 {[%emt 0:00:07]} 75. Qe4 {[%emt 0:00:36]} Qc8+ {[%emt 0:00:52]} 76. Kh4 {[%emt 0:00:29]} Qd8+ {[%emt 0:01:46] normal} 1/2-1/2

[Event "-chT Youth Countries 2019"]
[Site "Wuerzburg"]
[Date "2019.10.02"]
[Round "2.8"]
[White "Roncea, Andrea-Alexandra"]
[Black "Prinzen, Siri Marleen"]
[Result "1-0"]
[ECO "B13"]
[WhiteElo "1590"]
[BlackElo "1520"]
[Annotator "NA"]
[PlyCount "111"]
[EventDate "2019.10.02"]
[EventType "team-tourn"]
[EventRounds "7"]
[EventCountry "GER"]
[SourceTitle "playchess.com"]
[Source "ChessBase"]
[SourceQuality "1"]
[WhiteTeam "Niedersachsen"]
[BlackTeam "Bayern 1"]
[TimeControl "40/5400+30:1800+30"]

1. e4 {[%emt 0:00:00]} c6 {[%emt 0:00:00]} 2. d4 {[%emt 0:00:00]} d5 {[%emt 0:00:00]} 3. exd5 {[%emt 0:00:00]} cxd5 {[%emt 0:00:00]} 4. Bd3 {[%emt 0:00:00]} Nc6 {[%emt 0:00:02]} 5. c3 {[%emt 0:00:00]} Nf6 {[%emt 0:00:07]} 6. Bf4 {[%emt 0:00:12]} Bg4 {[%emt 0:00:36]} 7. Qb3 {[%emt 0:00:08]} Qd7 {[%emt 0:00:11]} 8. Nd2 {[%emt 0:00:25]} e6 {[%emt 0:00:30]} 9. Ngf3 {[%emt 0:00:17]} Bxf3 {[%emt 0:02:43]} 10. Nxf3 {[%emt 0:03:05]} Bd6 {[%emt 0:03:40]} 11. Bxd6 {[%emt 0:01:30]} Qxd6 {[%emt 0:00:07]} 12. O-O {[%emt 0:01:17]} O-O {[%emt 0:00:11]} 13. Rae1 {[%emt 0:01:20]} Qc7 {[%emt 0:08:14]} 14. Ne5 {[%emt 0:03:14]} Nxe5 {[%emt 0:00:32]} 15. dxe5 {[%emt 0:01:33]} Nd7 {[%emt 0:01:38]} 16. f4 {[%emt 0:04:32]} Qb6+ {[%emt 0:05:11]} 17. Qxb6 {[%emt 0:04:14]} Nxb6 {[%emt 0:00:11]} 18. Rd1 {[%emt 0:02:34]} Rac8 {[%emt 0:01:18]} 19. Rf2 {[%emt 0:13:57]} f5 {[%emt 0:05:57]} 20. g3 {[%emt 0:02:47]} Nc4 {[%emt 0:01:25]} 21. Bxc4 {[%emt 0:06:21]} Rxc4 {[%emt 0:00:07]} 22. Rfd2 {[%emt 0:02:45]} Rfc8 {[%emt 0:01:54]} 23. Rd4 {[%emt 0:00:23]} Kf8 {[%emt 0:01:29]} 24. Kf2 {[%emt 0:01:01]} Ke7 {[%emt 0:01:16]} 25. Ke3 {[%emt 0:02:07]} Kd7 {[%emt 0:01:18]} 26. Rxc4 {[%emt 0:06:15]} Rxc4 {[%emt 0:00:11]} 27. Rg1 {[%emt 0:00:49]} g6 {[%emt 0:05:02]} 28. g4 {[%emt 0:02:18]} b6 {[%emt 0:02:14]} 29. gxf5 {[%emt 0:00:48]} exf5 {[%emt 0:00:21]} 30. Rd1 {[%emt 0:01:46]} Ke6 {[%emt 0:00:26]} 31. h4 {[%emt 0:01:07]} Rc7 {[%emt 0:06:51]} 32. Rg1 {[%emt 0:04:44]} Re7 {[%emt 0:05:03]} 33. Kd4 {[%emt 0:04:09]} Rc7 {[%emt 0:01:43]} 34. Rg5 {[%emt 0:01:59]} Rc4+ {[%emt 0:02:09]} 35. Ke3 {[%emt 0:00:17]} Rc8 {[%emt 0:00:17]} 36. h5 {[%emt 0:00:34]} Rg8 {[%emt 0:01:12]} 37. Kd4 {[%emt 0:00:33]} Rg7 {[%emt 0:01:02]} 38. hxg6 {[%emt 0:03:31]} Rxg6 {[%emt 0:02:24]} 39. Rh5 {[%emt 0:00:27]} h6 {[%emt 0:00:13]} 40. a3 {[%emt 0:00:42]} a6 {[%emt 0:01:27]} 41. b3 {[%emt 0:31:50]} a5 {[%emt 0:33:17]} 42. a4 {[%emt 0:02:25]} Ke7 {[%emt 0:02:18]} 43. Rxf5 {[%emt 0:03:19]} Ke6 {[%emt 0:00:50]} 44. Rh5 {[%emt 0:00:28]} Ke7 {[%emt 0:00:50]} 45. Kxd5 {[%emt 0:00:25]} Rg8 {[%emt 0:00:30]} 46. Rxh6 {[%emt 0:00:35]} Rd8+ {[%emt 0:00:22]} 47. Rd6 {[%emt 0:00:32]} Rxd6+ {[%emt 0:00:50]} 48. exd6+ {[%emt 0:00:08]} Kd7 {[%emt 0:00:13]} 49. f5 {[%emt 0:00:06]} b5 {[%emt 0:00:41]} 50. axb5 {[%emt 0:00:07]} a4 {[%emt 0:00:08]} 51. bxa4 {[%emt 0:00:05]} Kc8 {[%emt 0:00:12]} 52. Kc6 {[%emt 0:00:11]} Kb8 {[%emt 0:00:11]} 53. d7 {[%emt 0:00:16]} Ka7 {[%emt 0:00:06]} 54. b6+ {[%emt 0:00:10]} Ka6 {[%emt 0:00:11]} 55. d8=Q {[%emt 0:00:14]} Ka5 56. Qa8# {normal} 1-0